[Event "Czech Youth U10 Boys 2024"]
[Site "Kouty nad Desnou"]
[Date "2024.03.10"]
[Round "2.4"]
[White "Bucek, Vit"]
[Black "Kobersky, Matyas"]
[Result "1-0"]
[ECO "B18"]
[WhiteElo "1603"]
[BlackElo "1405"]
[Annotator "NA RC"]
[PlyCount "45"]
[EventDate "2024.03.10"]
[EventType "swiss"]
[EventCountry "CZE"]
[SourceTitle "playchess.com"]
[Source "ChessBase"]
[SourceQuality "1"]
[TimeControl "40/5400+30:1800+30"]

1. e4 {[%emt 0:00:02]} c6 {[%emt 0:01:07]} 2. d4 {[%emt 0:00:05]} d5 {[%emt 0:01:34]} 3. Nc3 {[%emt 0:00:13]} dxe4 {[%emt 0:02:17]} 4. Nxe4 {[%emt 0:00:11]} Bf5 {[%emt 0:03:36]} 5. Ng3 {[%emt 0:00:20]} Bg6 {[%emt 0:03:15]} 6. h4 {[%emt 0:00:25]} h6 {[%emt 0:04:33]} 7. Nf3 {[%emt 0:00:34]} Nf6 {[%emt 0:03:22]} 8. h5 {[%emt 0:00:36]} Bh7 {[%emt 0:03:03]} 9. Bd3 {[%emt 0:01:38]} Bxd3 {[%emt 0:02:38]} 10. Qxd3 {[%emt 0:00:16]} Nbd7 {[%emt 0:01:55]} 11. Bd2 {[%emt 0:01:38]} Qc7 {[%emt 0:06:06]} 12. O-O-O {[%emt 0:04:00]} O-O-O {[%emt 0:02:44]} 13. Rde1 {[%emt 0:03:33]} e6 {[%emt 0:02:55]} 14. Ne4 {[%emt 0:02:02]} Be7 {[%emt 0:02:59]} 15. g3 {[%emt 0:04:49]} c5 {[%emt 0:11:51]} 16. Bf4 {[%emt 0:17:01]} Qc6 {[%emt 0:05:44]} 17. Nxf6 {[%emt 0:02:54]} Nxf6 {[%emt 0:02:15]} 18. Kb1 {[%emt 0:04:26]} cxd4 {[%emt 0:03:12]} 19. Ne5 {[%emt 0:01:00]} Qe8 {[%emt 0:04:21]} 20. Qc4+ {[%emt 0:01:12]} Kb8 {[%emt 0:01:26]} 21. Nxf7+ {[%emt 0:01:20]} Ka8 {[%emt 0:01:40]} 22. Nxd8 {[%emt 0:00:37]} Qxd8 {[%emt 0:00:54]} 23. Rxe6 {[%emt 0:01:33]} 1-0

[Event "Czech Youth U10 Boys 2024"]
[Site "Kouty nad Desnou"]
[Date "2024.03.10"]
[Round "2.5"]
[White "Vydra, David"]
[Black "Dlouhy, Martin"]
[Result "1-0"]
[ECO "B80"]
[WhiteElo "1583"]
[BlackElo "1965"]
[Annotator "RC"]
[PlyCount "75"]
[EventDate "2024.03.10"]
[EventType "swiss"]
[EventCountry "CZE"]
[SourceTitle "playchess.com"]
[Source "ChessBase"]
[SourceQuality "1"]
[TimeControl "40/5400+30:1800+30"]

1. e4 {[%emt 0:00:04]} c5 {[%emt 0:00:03]} 2. Nf3 {[%emt 0:00:06]} e6 {[%emt 0:00:06]} 3. d4 {[%emt 0:00:10]} cxd4 {[%emt 0:00:05]} 4. Nxd4 {[%emt 0:00:05]} Nf6 {[%emt 0:00:06]} 5. Nc3 {[%emt 0:00:34]} d6 {[%emt 0:00:22]} 6. Bg5 Be7 {[%emt 0:01:06]} 7. f4 {[%emt 0:03:29]} h6 {[%emt 0:00:10]} 8. Bh4 {[%emt 0:02:48]} a6 {[%emt 0:01:06]} 9. Qf3 {[%emt 0:02:33]} Nbd7 {[%emt 0:08:55]} 10. O-O-O {[%emt 0:02:36]} Qc7 {[%emt 0:01:43]} 11. g3 {[%emt 0:03:41]} Nc5 {[%emt 0:01:27]} 12. Kb1 {[%emt 0:19:19]} Bd7 {[%emt 0:01:05]} 13. Bg2 {[%emt 0:10:12]} O-O-O {[%emt 0:00:27]} 14. Rhe1 {[%emt 0:00:47]} Ng8 {[%emt 0:04:07]} 15. Bxe7 {[%emt 0:01:50]} Nxe7 16. e5 {[%emt 0:00:38]} d5 {[%emt 0:02:18]} 17. g4 {[%emt 0:02:32]} g6 {[%emt 0:00:53]} 18. Re3 {[%emt 0:07:26]} h5 {[%emt 0:00:31]} 19. g5 {[%emt 0:01:46]} Nc6 {[%emt 0:02:10]} 20. Nce2 {[%emt 0:02:59]} Be8 {[%emt 0:01:15]} 21. Rc3 {[%emt 0:01:43]} Qe7 {[%emt 0:01:04]} 22. Bf1 {[%emt 0:08:11]} Ne4 {[%emt 0:00:36]} 23. Ra3 {[%emt 0:02:30]} Nxd4 {[%emt 0:01:11]} 24. Nxd4 {[%emt 0:00:44]} Qb4 {[%emt 0:03:12]} 25. Kc1 {[%emt 0:06:01]} Kd7 {[%emt 0:03:11]} 26. Rb3 Qa5 {[%emt 0:04:06]} 27. Rxb7+ {[%emt 0:13:17]} Kc8 {[%emt 0:00:42]} 28. Rb3 {[%emt 0:00:26]} Qxa2 {[%emt 0:00:16]} 29. Ra3 {[%emt 0:01:11]} Qxa3 {[%emt 0:05:08]} 30. bxa3 {[%emt 0:00:44]} a5 {[%emt 0:01:42]} 31. Qb3 {[%emt 0:00:36]} Nc5 {[%emt 0:04:16]} 32. Qc3 {[%emt 0:00:56]} Rd7 {[%emt 0:00:45]} 33. Qxc5+ {[%emt 0:00:08]} Rc7 {[%emt 0:00:22]} 34. Ba6+ {[%emt 0:00:11]} Kd8 {[%emt 0:00:36]} 35. Qd6+ {[%emt 0:00:11]} Bd7 {[%emt 0:00:42]} 36. Bb5 {[%emt 0:00:27]} Re8 {[%emt 0:01:24]} 37. Bxd7 {[%emt 0:00:17]} Rxd7 {[%emt 0:00:29]} 38. Nc6+ {[%emt 0:00:09]} 1-0

[Event "Czech Youth U10 Boys 2024"]
[Site "Kouty nad Desnou"]
[Date "2024.03.10"]
[Round "2.7"]
[White "Vratny, Vojtech"]
[Black "Menkov, Ivan"]
[Result "1-0"]
[ECO "A06"]
[WhiteElo "1566"]
[BlackElo "1524"]
[Annotator "NA RC"]
[PlyCount "147"]
[EventDate "2024.03.10"]
[EventType "swiss"]
[EventCountry "CZE"]
[SourceTitle "playchess.com"]
[Source "ChessBase"]
[SourceQuality "1"]
[TimeControl "40/5400+30:1800+30"]

1. Nf3 {[%emt 0:00:07]} d5 {[%emt 0:00:09]} 2. g3 {[%emt 0:00:32]} Nc6 {[%emt 0:00:09]} 3. d4 {[%emt 0:00:30]} Bg4 {[%emt 0:00:22]} 4. Bg2 {[%emt 0:00:45]} Nf6 {[%emt 0:00:20]} 5. O-O {[%emt 0:00:32]} Bxf3 {[%emt 0:00:11]} 6. Bxf3 {[%emt 0:00:26]} e5 {[%emt 0:00:07]} 7. dxe5 {[%emt 0:01:05]} Nxe5 {[%emt 0:00:09]} 8. Bg2 {[%emt 0:01:09]} c6 {[%emt 0:00:24]} 9. b3 {[%emt 0:05:56]} Bd6 {[%emt 0:00:20]} 10. Bb2 {[%emt 0:02:04]} O-O {[%emt 0:01:22]} 11. Nd2 {[%emt 0:03:37]} Re8 {[%emt 0:02:07]} 12. Re1 {[%emt 0:03:31]} Qe7 {[%emt 0:02:35]} 13. Nf1 {[%emt 0:06:19]} Rad8 {[%emt 0:14:46]} 14. a4 {[%emt 0:17:20]} a5 {[%emt 0:01:16]} 15. Qc1 {[%emt 0:02:36]} Bc7 {[%emt 0:01:09]} 16. Ba3 {[%emt 0:07:28]} Qd7 {[%emt 0:01:45]} 17. Bc5 {[%emt 0:05:03]} b6 {[%emt 0:00:40]} 18. Ba3 {[%emt 0:01:42]} Qf5 {[%emt 0:02:37]} 19. Ne3 {[%emt 0:03:40]} Qh5 {[%emt 0:01:07]} 20. Bb2 {[%emt 0:08:10]} Nfg4 {[%emt 0:00:46]} 21. Nxg4 {[%emt 0:01:14]} Nxg4 {[%emt 0:00:15]} 22. h3 {[%emt 0:00:28]} Nxf2 {[%emt 0:03:27]} 23. Kxf2 {[%emt 0:01:57]} Qf5+ {[%emt 0:00:50]} 24. Kg1 {[%emt 0:02:44]} Bxg3 {[%emt 0:00:19]} 25. Rf1 {[%emt 0:00:42]} Qg6 {[%emt 0:00:39]} 26. Qd2 {[%emt 0:02:35]} Re6 {[%emt 0:00:50]} 27. Bd4 {[%emt 0:03:03]} Rde8 {[%emt 0:00:50]} 28. Qd3 {[%emt 0:06:42]} Rxe2 {[%emt 0:08:36]} 29. Qxg6 {[%emt 0:00:37]} hxg6 {[%emt 0:00:05]} 30. Bxb6 {[%emt 0:00:48]} Rxc2 {[%emt 0:00:22]} 31. Bxa5 {[%emt 0:00:22]} Re3 {[%emt 0:02:28]} 32. Rac1 {[%emt 0:03:36]} Ra2 {[%emt 0:01:19]} 33. Rf3 {[%emt 0:01:34]} Rxf3 {[%emt 0:02:09]} 34. Bxf3 {[%emt 0:00:17]} Rf2 {[%emt 0:02:23]} 35. Bg2 {[%emt 0:02:15]} Rf6 {[%emt 0:00:34]} 36. Rf1 {[%emt 0:01:48]} Re6 {[%emt 0:00:20]} 37. Bb6 {[%emt 0:01:10]} f6 {[%emt 0:01:21]} 38. a5 {[%emt 0:00:35]} Re8 {[%emt 0:01:11]} 39. b4 {[%emt 0:00:55]} Bd6 {[%emt 0:00:22]} 40. Bc5 {[%emt 0:00:27]} Bxc5+ {[%emt 0:00:12]} 41. bxc5 {[%emt 0:30:05]} Ra8 {[%emt 0:30:25]} 42. Ra1 {[%emt 0:00:18]} Kf7 {[%emt 0:00:39]} 43. Kf2 {[%emt 0:00:14]} Ke6 {[%emt 0:00:45]} 44. Ke3 {[%emt 0:00:27]} Ke5 {[%emt 0:00:11]} 45. Kd3 {[%emt 0:00:32]} Kf4 {[%emt 0:00:53]} 46. Bf1 {[%emt 0:01:14]} Kf5 {[%emt 0:01:20]} 47. Ra4 {[%emt 0:00:21]} Ke6 {[%emt 0:00:35]} 48. Ke3 {[%emt 0:00:32]} Ke5 {[%emt 0:01:58]} 49. Bg2 {[%emt 0:00:23]} f5 {[%emt 0:00:26]} 50. a6 {[%emt 0:00:37]} Ra7 {[%emt 0:00:51]} 51. Bf3 {[%emt 0:00:49]} f4+ {[%emt 0:00:48]} 52. Kd3 {[%emt 0:00:13]} g5 {[%emt 0:01:05]} 53. Bg4 {[%emt 0:00:39]} g6 {[%emt 0:00:40]} 54. Bf3 {[%emt 0:00:56]} Kf5 {[%emt 0:01:16]} 55. Kd4 {[%emt 0:00:21]} Kf6 {[%emt 0:01:30]} 56. Ra5 {[%emt 0:00:44]} Kf5 {[%emt 0:00:34]} 57. Bg4+ {[%emt 0:00:22]} Kf6 {[%emt 0:00:16]} 58. Ra3 {[%emt 0:01:24]} Kf7 {[%emt 0:01:17]} 59. Ke5 {[%emt 0:00:56]} Ke7 {[%emt 0:00:12]} 60. Ra4 {[%emt 0:00:19]} Ra8 {[%emt 0:01:38]} 61. a7 {[%emt 0:00:17]} Kd8 62. Kd6 {[%emt 0:01:08]} f3 {[%emt 0:01:33]} 63. Bxf3 {[%emt 0:00:06]} Kc8 {[%emt 0:00:18]} 64. Kxc6 {[%emt 0:00:05]} d4 {[%emt 0:00:35]} 65. Bg4+ {[%emt 0:00:09]} Kd8 {[%emt 0:00:08]} 66. Kb7 {[%emt 0:00:16]} Rxa7+ {[%emt 0:00:18]} 67. Rxa7 {[%emt 0:00:08]} d3 {[%emt 0:00:07]} 68. Kc6 {[%emt 0:00:06]} d2 {[%emt 0:00:17]} 69. Bd1 {[%emt 0:00:07]} g4 {[%emt 0:00:15]} 70. hxg4 {[%emt 0:00:03]} g5 {[%emt 0:00:20]} 71. Rh7 {[%emt 0:00:13]} Ke8 {[%emt 0:00:09]} 72. Kd6 {[%emt 0:00:05]} Kf8 {[%emt 0:00:06]} 73. Ke6 {[%emt 0:00:07]} Kg8 {[%emt 0:00:08]} 74. Ra7 {[%emt 0:00:06]} 1-0

[Event "Czech Youth U10 Boys 2024"]
[Site "Kouty nad Desnou"]
[Date "2024.03.10"]
[Round "2.9"]
[White "Rybar, Vojta"]
[Black "Fadrny, Jonas"]
[Result "1-0"]
[ECO "C50"]
[WhiteElo "1435"]
[BlackElo "1600"]
[Annotator "NA RC"]
[PlyCount "105"]
[EventDate "2024.03.10"]
[EventType "swiss"]
[EventCountry "CZE"]
[SourceTitle "playchess.com"]
[Source "ChessBase"]
[SourceQuality "1"]
[TimeControl "40/5400+30:1800+30"]

1. e4 {[%emt 0:00:03]} e5 {[%emt 0:00:16]} 2. Nf3 {[%emt 0:00:10]} Nc6 {[%emt 0:00:45]} 3. Bc4 {[%emt 0:00:28]} h6 {[%emt 0:02:32]} 4. d4 {[%emt 0:00:26]} exd4 {[%emt 0:02:00]} 5. Nxd4 {[%emt 0:00:35]} Ne5 {[%emt 0:06:12]} 6. Bb3 {[%emt 0:01:25]} c5 {[%emt 0:04:36]} 7. Nf3 {[%emt 0:00:59]} c4 {[%emt 0:04:56]} 8. Nxe5 {[%emt 0:01:18]} Qa5+ {[%emt 0:00:55]} 9. Bd2 {[%emt 0:01:48]} Qxe5 {[%emt 0:02:20]} 10. Bxc4 {[%emt 0:00:45]} Qxe4+ {[%emt 0:00:26]} 11. Qe2 {[%emt 0:00:49]} Qxe2+ {[%emt 0:00:17]} 12. Kxe2 {[%emt 0:00:17]} Nf6 {[%emt 0:03:05]} 13. Re1 {[%emt 0:00:27]} d5 {[%emt 0:03:08]} 14. Bb5+ {[%emt 0:00:28]} Kd8 {[%emt 0:01:38]} 15. Kf1 {[%emt 0:00:52]} Bf5 {[%emt 0:07:24]} 16. c3 {[%emt 0:02:21]} a6 {[%emt 0:01:25]} 17. Be2 {[%emt 0:00:32]} Bc5 {[%emt 0:07:11]} 18. Bf4 {[%emt 0:00:50]} Re8 {[%emt 0:05:37]} 19. Nd2 {[%emt 0:00:44]} g5 {[%emt 0:09:43]} 20. Bg3 {[%emt 0:00:46]} Rc8 {[%emt 0:06:04]} 21. Nb3 {[%emt 0:01:42]} Bb6 {[%emt 0:00:54]} 22. Rad1 {[%emt 0:01:16]} Be6 {[%emt 0:02:05]} 23. Nd4 {[%emt 0:00:49]} Bxd4 {[%emt 0:01:36]} 24. Rxd4 {[%emt 0:00:24]} Ne4 {[%emt 0:03:52]} 25. Bf3 {[%emt 0:00:44]} Nxg3+ {[%emt 0:01:04]} 26. hxg3 {[%emt 0:00:17]} Rc4 {[%emt 0:05:53]} 27. Red1 {[%emt 0:00:34]} Rxd4 {[%emt 0:05:48]} 28. Rxd4 {[%emt 0:00:15]} Re7 {[%emt 0:00:52]} 29. c4 {[%emt 0:00:41]} Bd7 {[%emt 0:02:25]} 30. Bxd5 {[%emt 0:00:58]} Kc7 {[%emt 0:00:30]} 31. Re4 {[%emt 0:00:42]} Rxe4 {[%emt 0:00:44]} 32. Bxe4 {[%emt 0:00:09]} Be6 {[%emt 0:00:28]} 33. b3 {[%emt 0:00:18]} f5 {[%emt 0:00:14]} 34. Bd3 {[%emt 0:00:29]} Kc6 {[%emt 0:00:25]} 35. Ke2 {[%emt 0:00:08]} Kc5 {[%emt 0:00:25]} 36. a3 {[%emt 0:00:41]} b5 {[%emt 0:02:08]} 37. cxb5 {[%emt 0:00:12]} axb5 {[%emt 0:00:15]} 38. b4+ Kc6 {[%emt 0:01:22]} 39. Ke3 {[%emt 0:00:00]} Bd5 {[%emt 0:01:50]} 40. f3 {[%emt 0:00:00]} Be6 {[%emt 0:00:46]} 41. Kd4 {[%emt 0:29:16]} Bd7 {[%emt 0:31:30]} 42. Ke5 {[%emt 0:00:17]} Bc8 {[%emt 0:01:19]} 43. Bxf5 {[%emt 0:00:25]} Bxf5 {[%emt 0:00:13]} 44. Kxf5 {[%emt 0:00:04]} Kd5 {[%emt 0:00:11]} 45. Kg6 {[%emt 0:00:14]} Kc4 {[%emt 0:00:25]} 46. Kxh6 {[%emt 0:00:07]} Kb3 {[%emt 0:00:04]} 47. Kxg5 {[%emt 0:00:20]} Kxa3 {[%emt 0:00:07]} 48. f4 {[%emt 0:00:16]} Kxb4 {[%emt 0:00:25]} 49. f5 {[%emt 0:00:16]} Kc3 {[%emt 0:00:22]} 50. f6 {[%emt 0:00:12]} b4 {[%emt 0:00:24]} 51. f7 {[%emt 0:00:09]} b3 {[%emt 0:00:09]} 52. f8=Q {[%emt 0:00:05]} b2 {[%emt 0:00:15]} 53. Qf6+ {[%emt 0:00:11]} 1-0

[Event "Czech Youth U10 Boys 2024"]
[Site "Kouty nad Desnou"]
[Date "2024.03.11"]
[Round "3.1"]
[White "Lutskiy, Mikhail"]
[Black "Vo, Daniel"]
[Result "1/2-1/2"]
[ECO "B53"]
[WhiteElo "1676"]
[BlackElo "1629"]
[Annotator "NA RC"]
[PlyCount "132"]
[EventDate "2024.03.10"]
[EventType "swiss"]
[EventCountry "CZE"]
[SourceTitle "playchess.com"]
[Source "ChessBase"]
[SourceQuality "1"]
[TimeControl "40/5400+30:1800+30"]

1. e4 {[%emt 0:00:02]} c5 {[%emt 0:00:09]} 2. Nf3 {[%emt 0:00:17]} d6 {[%emt 0:00:13]} 3. d4 {[%emt 0:00:11]} cxd4 {[%emt 0:00:07]} 4. Qxd4 {[%emt 0:00:22]} Nc6 {[%emt 0:00:07]} 5. Bb5 {[%emt 0:00:12]} Bd7 {[%emt 0:00:13]} 6. Bxc6 {[%emt 0:00:22]} Bxc6 {[%emt 0:00:16]} 7. Nc3 {[%emt 0:00:18]} Nf6 {[%emt 0:00:37]} 8. Bg5 {[%emt 0:00:11]} e6 {[%emt 0:01:28]} 9. O-O-O {[%emt 0:00:47]} Be7 {[%emt 0:00:31]} 10. Rhe1 {[%emt 0:02:35]} Qb6 {[%emt 0:03:11]} 11. Qxb6 {[%emt 0:05:12]} axb6 {[%emt 0:00:49]} 12. Kb1 {[%emt 0:04:22]} O-O {[%emt 0:00:28]} 13. Bxf6 {[%emt 0:02:21]} gxf6 {[%emt 0:00:39]} 14. Nd4 {[%emt 0:01:23]} Rfd8 {[%emt 0:04:53]} 15. a3 {[%emt 0:05:18]} d5 {[%emt 0:02:45]} 16. exd5 Bxd5 {[%emt 0:00:25]} 17. Nf5 {[%emt 0:14:24]} Bc5 {[%emt 0:05:05]} 18. Nxd5 {[%emt 0:00:35]} Rxd5 {[%emt 0:02:49]} 19. Rxd5 {[%emt 0:01:31]} exd5 {[%emt 0:00:38]} 20. Ne7+ {[%emt 0:00:28]} Kg7 {[%emt 0:01:31]} 21. Nxd5 {[%emt 0:00:45]} Rd8 {[%emt 0:00:31]} 22. Nc3 {[%emt 0:10:03]} f5 {[%emt 0:01:56]} 23. f3 {[%emt 0:01:18]} Kf6 {[%emt 0:10:48]} 24. Re2 {[%emt 0:03:50]} h5 {[%emt 0:03:38]} 25. Ka2 {[%emt 0:00:50]} h4 {[%emt 0:00:05]} 26. Kb3 {[%emt 0:00:50]} h3 {[%emt 0:00:19]} 27. g3 {[%emt 0:00:30]} Rh8 {[%emt 0:00:21]} 28. Kc4 {[%emt 0:00:35]} Bd6 {[%emt 0:00:31]} 29. Nd5+ {[%emt 0:00:31]} Kg7 {[%emt 0:00:41]} 30. f4 {[%emt 0:01:03]} Rc8+ {[%emt 0:00:11]} 31. Kb3 {[%emt 0:07:52]} Rc5 {[%emt 0:01:09]} 32. Nc3 {[%emt 0:01:42]} Kg6 33. Ka2 {[%emt 0:06:30]} Kh5 {[%emt 0:03:25]} 34. Re8 {[%emt 0:01:46]} Kg4 {[%emt 0:03:12]} 35. Rh8 {[%emt 0:00:26]} Be7 {[%emt 0:01:22]} 36. Nd1 {[%emt 0:02:35]} Rc6 {[%emt 0:00:46]} 37. c3 {[%emt 0:05:20]} Re6 {[%emt 0:01:33]} 38. Nf2+ {[%emt 0:00:34]} Kf3 {[%emt 0:01:18]} 39. Nxh3 {[%emt 0:00:17]} Kg2 {[%emt 0:00:51]} 40. Ng5 {[%emt 0:00:59]} Re2 {[%emt 0:00:39]} 41. Nxf7 {[%emt 0:34:06]} Bf6 {[%emt 0:30:25]} 42. Rc8 {[%emt 0:00:08]} Kxh2 {[%emt 0:00:55]} 43. Nd6 {[%emt 0:00:29]} Kxg3 {[%emt 0:00:51]} 44. Nxf5+ {[%emt 0:00:10]} Kxf4 {[%emt 0:00:25]} 45. Nd6 {[%emt 0:00:27]} Re7 {[%emt 0:03:54]} 46. Nc4 {[%emt 0:03:35]} Re6 {[%emt 0:05:16]} 47. Rc7 {[%emt 0:01:54]} b5 {[%emt 0:03:08]} 48. Nd2 {[%emt 0:00:47]} b6 {[%emt 0:01:05]} 49. Nb3 {[%emt 0:00:56]} Rd6 {[%emt 0:01:58]} 50. Rf7 {[%emt 0:02:15]} Kg5 {[%emt 0:03:35]} 51. Kb1 {[%emt 0:00:32]} Kg6 {[%emt 0:00:28]} 52. Rb7 {[%emt 0:00:20]} Kf5 {[%emt 0:01:03]} 53. Nd4+ {[%emt 0:03:52]} Bxd4 {[%emt 0:00:30]} 54. cxd4 {[%emt 0:00:07]} Ke4 {[%emt 0:00:10]} 55. Kc2 {[%emt 0:00:17]} Kxd4 {[%emt 0:00:12]} 56. Kb3 {[%emt 0:00:11]} Kd3 {[%emt 0:01:11]} 57. Rc7 {[%emt 0:01:10]} Rf6 {[%emt 0:02:05]} 58. Kb4 {[%emt 0:00:53]} Rf2 {[%emt 0:00:36]} 59. b3 {[%emt 0:00:27]} Rb2 {[%emt 0:00:18]} 60. Rc6 {[%emt 0:00:24]} Kd2 {[%emt 0:00:58]} 61. Rxb6 {[%emt 0:00:24]} Kc2 {[%emt 0:00:18]} 62. Rxb5 {[%emt 0:02:32]} Rxb3+ {[%emt 0:00:15]} 63. Ka4 {[%emt 0:00:21]} Rc3 {[%emt 0:01:07]} 64. Rh5 {[%emt 0:01:50]} Rd3 {[%emt 0:00:57]} 65. Rh2+ {[%emt 0:00:22]} Kc3 {[%emt 0:00:39]} 66. Kb5 {[%emt 0:00:53]} Rd5+ {[%emt 0:01:07]} 1/2-1/2

[Event "Czech Youth U10 Boys 2024"]
[Site "Kouty nad Desnou"]
[Date "2024.03.11"]
[Round "3.2"]
[White "Trejbal, Jindrich"]
[Black "Bucek, Vit"]
[Result "1-0"]
[ECO "B40"]
[WhiteElo "1947"]
[BlackElo "1603"]
[Annotator "RC"]
[PlyCount "143"]
[EventDate "2024.03.10"]
[EventType "swiss"]
[EventCountry "CZE"]
[SourceTitle "playchess.com"]
[Source "ChessBase"]
[SourceQuality "1"]
[TimeControl "40/5400+30:1800+30"]

1. e4 {[%emt 0:00:03]} c5 {[%emt 0:00:06]} 2. Nf3 {[%emt 0:00:16]} e6 {[%emt 0:00:09]} 3. c4 {[%emt 0:01:53]} Nc6 {[%emt 0:00:34]} 4. Nc3 {[%emt 0:02:30]} g6 {[%emt 0:00:31]} 5. d4 {[%emt 0:03:00]} cxd4 {[%emt 0:00:28]} 6. Nxd4 {[%emt 0:00:09]} Bg7 {[%emt 0:00:29]} 7. Be3 {[%emt 0:03:22]} d6 {[%emt 0:02:32]} 8. g3 {[%emt 0:04:22]} Nf6 {[%emt 0:02:38]} 9. Bg2 {[%emt 0:01:41]} O-O {[%emt 0:00:41]} 10. O-O {[%emt 0:01:45]} Nxd4 {[%emt 0:01:21]} 11. Bxd4 {[%emt 0:00:49]} a6 {[%emt 0:00:45]} 12. e5 {[%emt 0:07:23]} dxe5 {[%emt 0:04:24]} 13. Bxe5 {[%emt 0:02:48]} Qb6 {[%emt 0:00:41]} 14. Qd4 {[%emt 0:05:58]} Qxd4 {[%emt 0:02:54]} 15. Bxd4 {[%emt 0:00:08]} Nd7 {[%emt 0:00:58]} 16. Rad1 {[%emt 0:03:53]} Bxd4 {[%emt 0:01:54]} 17. Rxd4 {[%emt 0:00:09]} Rb8 {[%emt 0:00:42]} 18. Ne4 {[%emt 0:01:29]} f5 {[%emt 0:01:58]} 19. Nd6 {[%emt 0:01:34]} Nf6 {[%emt 0:02:24]} 20. Rfd1 {[%emt 0:04:57]} e5 {[%emt 0:03:03]} 21. Bd5+ {[%emt 0:04:24]} Kg7 {[%emt 0:01:52]} 22. R4d2 {[%emt 0:02:34]} b5 {[%emt 0:02:44]} 23. c5 {[%emt 0:06:02]} f4 {[%emt 0:08:40]} 24. Rc1 {[%emt 0:08:25]} Rd8 {[%emt 0:03:33]} 25. Bg2 {[%emt 0:03:20]} Be6 {[%emt 0:02:51]} 26. c6 {[%emt 0:05:19]} Ne8 {[%emt 0:14:03]} 27. c7 {[%emt 0:04:54]} Nxc7 {[%emt 0:00:38]} 28. Rxc7+ {[%emt 0:00:06]} Kg8 {[%emt 0:00:19]} 29. Rcc2 {[%emt 0:03:03]} Bxa2 {[%emt 0:01:11]} 30. Bd5+ {[%emt 0:00:46]} Bxd5 {[%emt 0:00:45]} 31. Rxd5 {[%emt 0:00:04]} Kf8 {[%emt 0:01:03]} 32. Rcd2 {[%emt 0:00:38]} f3 {[%emt 0:05:04]} 33. h4 {[%emt 0:01:59]} Ke7 {[%emt 0:01:49]} 34. Rxe5+ {[%emt 0:00:50]} Kf6 {[%emt 0:00:17]} 35. Re3 {[%emt 0:00:31]} b4 {[%emt 0:01:57]} 36. Rxf3+ {[%emt 0:00:18]} Kg7 {[%emt 0:00:56]} 37. Rfd3 {[%emt 0:00:35]} Kg8 {[%emt 0:00:17]} 38. Kg2 {[%emt 0:00:42]} a5 {[%emt 0:00:32]} 39. b3 {[%emt 0:00:42]} Ra8 {[%emt 0:01:09]} 40. Nc4 {[%emt 0:00:33]} Rdb8 {[%emt 0:00:24]} 41. Ra2 {[%emt 0:30:34]} a4 {[%emt 0:31:17]} 42. Rxa4 {[%emt 0:00:29]} Rxa4 {[%emt 0:00:50]} 43. bxa4 {[%emt 0:00:06]} b3 {[%emt 0:00:21]} 44. Nb2 {[%emt 0:00:16]} Kg7 {[%emt 0:00:35]} 45. Kf3 {[%emt 0:00:36]} Kf6 {[%emt 0:00:26]} 46. Ke2 {[%emt 0:00:18]} Kf5 {[%emt 0:00:39]} 47. f3 {[%emt 0:00:28]} h6 {[%emt 0:01:22]} 48. Kd2 {[%emt 0:01:30]} g5 {[%emt 0:00:42]} 49. hxg5 {[%emt 0:00:18]} hxg5 {[%emt 0:00:08]} 50. Rd5+ {[%emt 0:00:21]} Kf6 {[%emt 0:00:48]} 51. Rb5 {[%emt 0:00:42]} Rd8+ {[%emt 0:01:09]} 52. Ke2 {[%emt 0:00:24]} Rc8 {[%emt 0:00:58]} 53. Rxb3 {[%emt 0:00:17]} Rc2+ {[%emt 0:00:31]} 54. Kd3 {[%emt 0:00:36]} Rc1 {[%emt 0:01:32]} 55. a5 {[%emt 0:01:00]} Ra1 {[%emt 0:00:17]} 56. Rb6+ {[%emt 0:00:26]} Kf5 {[%emt 0:00:10]} 57. a6 {[%emt 0:01:36]} g4 {[%emt 0:00:24]} 58. fxg4+ {[%emt 0:00:24]} Kxg4 {[%emt 0:00:07]} 59. Kc4 {[%emt 0:00:10]} Kxg3 {[%emt 0:00:35]} 60. Kb5 {[%emt 0:00:16]} Kf4 {[%emt 0:00:42]} 61. Kc6 {[%emt 0:00:08]} Ke5 {[%emt 0:00:39]} 62. Kb7 {[%emt 0:00:25]} Kd5 {[%emt 0:00:20]} 63. a7 {[%emt 0:00:33]} Kc5 {[%emt 0:00:20]} 64. Rh6 Rxa7+ {[%emt 0:00:32]} 65. Kxa7 {[%emt 0:00:34]} Kb4 {[%emt 0:00:01]} 66. Kb6 {[%emt 0:00:15]} Kb3 {[%emt 0:00:08]} 67. Kb5 {[%emt 0:00:10]} Ka2 {[%emt 0:00:09]} 68. Kb4 {[%emt 0:00:21]} Kxb2 {[%emt 0:00:07]} 69. Rh2+ {[%emt 0:00:06]} Kb1 {[%emt 0:00:07]} 70. Kc3 {[%emt 0:00:08]} Ka1 {[%emt 0:00:06]} 71. Kb3 {[%emt 0:00:06]} Kb1 {[%emt 0:00:10]} 72. Rh1# 1-0

[Event "Czech Youth U10 Boys 2024"]
[Site "Kouty nad Desnou"]
[Date "2024.03.11"]
[Round "3.3"]
[White "Vratny, Vojtech"]
[Black "Vydra, David"]
[Result "0-1"]
[ECO "A40"]
[WhiteElo "1566"]
[BlackElo "1583"]
[Annotator "NA RC"]
[PlyCount "72"]
[EventDate "2024.03.10"]
[EventType "swiss"]
[EventCountry "CZE"]
[SourceTitle "playchess.com"]
[Source "ChessBase"]
[SourceQuality "1"]
[TimeControl "40/5400+30:1800+30"]

1. d4 {[%emt 0:00:10]} Nf6 {[%emt 0:00:13]} 2. c4 {[%emt 0:00:25]} e6 {[%emt 0:00:14]} 3. g3 {[%emt 0:00:24]} Be7 {[%emt 0:06:29]} 4. Bg2 {[%emt 0:00:25]} O-O {[%emt 0:00:41]} 5. Nf3 {[%emt 0:01:20]} d5 {[%emt 0:03:08]} 6. O-O {[%emt 0:02:00]} b6 {[%emt 0:02:26]} 7. cxd5 {[%emt 0:01:42]} Nxd5 {[%emt 0:00:39]} 8. e4 {[%emt 0:04:19]} Nf6 {[%emt 0:00:28]} 9. Nc3 {[%emt 0:06:51]} Bb7 {[%emt 0:01:22]} 10. Re1 {[%emt 0:00:55]} Nbd7 {[%emt 0:03:44]} 11. e5 {[%emt 0:07:08]} Nd5 {[%emt 0:00:25]} 12. Nxd5 {[%emt 0:01:13]} Bxd5 {[%emt 0:00:25]} 13. Qd3 {[%emt 0:03:48]} c5 {[%emt 0:05:08]} 14. h4 {[%emt 0:09:38]} h6 15. Kh2 {[%emt 0:21:05]} cxd4 {[%emt 0:06:32]} 16. Qxd4 {[%emt 0:01:45]} Bc5 {[%emt 0:00:21]} 17. Qg4 {[%emt 0:04:27]} Kh7 {[%emt 0:07:23]} 18. Re2 {[%emt 0:09:29]} f5 {[%emt 0:09:09]} 19. Qh5 {[%emt 0:05:45]} Kg8 {[%emt 0:14:27]} 20. Bxh6 {[%emt 0:03:43]} gxh6 {[%emt 0:12:01]} 21. Qg6+ {[%emt 0:00:32]} Kh8 {[%emt 0:00:06]} 22. Qxh6+ {[%emt 0:00:15]} Kg8 {[%emt 0:00:10]} 23. Ng5 {[%emt 0:00:46]} Qe7 {[%emt 0:00:30]} 24. Bxd5 {[%emt 0:02:28]} exd5 {[%emt 0:01:04]} 25. e6 {[%emt 0:02:21]} Nf6 {[%emt 0:00:30]} 26. Qg6+ {[%emt 0:01:28]} Qg7 {[%emt 0:00:09]} 27. Qxg7+ {[%emt 0:01:16]} Kxg7 {[%emt 0:00:21]} 28. e7 {[%emt 0:00:39]} Rg8 {[%emt 0:02:15]} 29. Rae1 {[%emt 0:02:32]} Bxf2 {[%emt 0:07:31]} 30. Rf1 {[%emt 0:00:59]} Be3 {[%emt 0:03:19]} 31. Ne6+ {[%emt 0:00:24]} Kf7 {[%emt 0:00:16]} 32. Nc7 {[%emt 0:00:47]} Rac8 {[%emt 0:00:34]} 33. e8=Q+ {[%emt 0:03:31]} Nxe8 {[%emt 0:00:19]} 34. Rxf5+ {[%emt 0:00:10]} Kg6 {[%emt 0:00:59]} 35. Nxe8 {[%emt 0:00:57]} Rgxe8 {[%emt 0:00:35]} 36. Rf1 {[%emt 0:00:37]} Bg1+ {[%emt 0:00:12]} 0-1